[Event "Titled Tuesday Blitz October 25 Late 2022"]
[White "Martinez Alcantara, Jose Eduardo"]
[Black "Predke, Alexandr"]
[WhiteFideId "3805662"]
[BlackFideId "24107581"]
[WhiteElo "2703"]
[BlackElo "2614"]
[Result "1/2-1/2"]
[Round "09"]
[TimeControl "180+1"]
[Date "2022.10.26"]
[WhiteClock "0:00:20"]
[BlackClock "0:00:04"]

1. e4 {[%clk 0:03:00]}  e5 {[%clk 0:02:58]} 2. Nf3 {[%clk 0:03:00]}  Nc6 {[%clk 0:02:59]} 3. Bb5 {[%clk 0:03:01]}  a6 {[%clk 0:02:58]} 4. Ba4 {[%clk 0:03:01]}  Nf6 {[%clk 0:02:58]} 5. O-O {[%clk 0:03:02]}  Be7 {[%clk 0:02:59]} 6. Re1 {[%clk 0:03:02]}  b5 {[%clk 0:02:59]} 7. Bb3 {[%clk 0:03:03]}  d6 {[%clk 0:02:59]} 8. c3 {[%clk 0:03:03]}  O-O {[%clk 0:02:59]} 9. h3 {[%clk 0:03:04]}  Re8 {[%clk 0:03:00]} 10. d4 {[%clk 0:03:03]}  Bb7 {[%clk 0:02:59]} 11. Ng5 {[%clk 0:03:01]}  Rf8 {[%clk 0:02:58]} 12. Nf3 {[%clk 0:03:02]}  Re8 {[%clk 0:02:59]} 13. Nbd2 {[%clk 0:03:03]}  Bf8 {[%clk 0:02:58]} 14. a4 {[%clk 0:03:02]}  h6 {[%clk 0:02:51]} 15. d5 {[%clk 0:02:55]}  Ne7 {[%clk 0:02:16]} 16. Nf1 {[%clk 0:02:55]}  c6 {[%clk 0:02:15]} 17. dxc6 {[%clk 0:02:55]}  Bxc6 {[%clk 0:02:16]} 18. Ng3 {[%clk 0:02:55]}  Ng6 {[%clk 0:02:14]} 19. Nh2 {[%clk 0:02:46]}  d5 {[%clk 0:01:58]} 20. exd5 {[%clk 0:02:33]}  Bxd5 {[%clk 0:01:59]} 21. Bc2 {[%clk 0:02:26]}  Qd7 {[%clk 0:01:27]} 22. Ng4 {[%clk 0:02:14]}  Nxg4 {[%clk 0:01:26]} 23. Qxg4 {[%clk 0:02:13]}  Qxg4 {[%clk 0:01:25]} 24. hxg4 {[%clk 0:02:14]}  Nf4 {[%clk 0:01:12]} 25. Be4 {[%clk 0:02:10]}  Bxe4 {[%clk 0:01:09]} 26. Nxe4 {[%clk 0:02:05]}  Nd3 {[%clk 0:01:10]} 27. Rd1 {[%clk 0:01:50]}  Rad8 {[%clk 0:01:08]} 28. axb5 {[%clk 0:01:50]}  axb5 {[%clk 0:01:08]} 29. Bxh6 {[%clk 0:01:29]}  Nxb2 {[%clk 0:01:04]} 30. Rxd8 {[%clk 0:01:29]}  Rxd8 {[%clk 0:01:05]} 31. Bg5 {[%clk 0:01:30]}  f6 {[%clk 0:01:00]} 32. Be3 {[%clk 0:01:23]}  Nc4 {[%clk 0:00:51]} 33. Kf1 {[%clk 0:01:20]}  b4 {[%clk 0:00:46]} 34. cxb4 {[%clk 0:01:18]}  Nxe3+ {[%clk 0:00:43]} 35. fxe3 {[%clk 0:01:18]}  Bxb4 {[%clk 0:00:44]} 36. Ke2 {[%clk 0:01:19]}  Bf8 {[%clk 0:00:44]} 37. Rf1 {[%clk 0:01:15]}  Kf7 {[%clk 0:00:40]} 38. g5 {[%clk 0:01:11]}  Be7 {[%clk 0:00:38]} 39. gxf6 {[%clk 0:01:10]}  gxf6 {[%clk 0:00:39]} 40. g4 {[%clk 0:01:09]}  Ke6 {[%clk 0:00:38]} 41. Ng3 {[%clk 0:01:08]}  Rg8 {[%clk 0:00:31]} 42. Kf3 {[%clk 0:01:08]}  Bc5 {[%clk 0:00:25]} 43. Nf5 {[%clk 0:00:58]}  e4+ {[%clk 0:00:23]} 44. Kf4 {[%clk 0:00:58]}  Bd6+ {[%clk 0:00:23]} 45. Nxd6 {[%clk 0:00:57]}  Kxd6 {[%clk 0:00:24]} 46. Ra1 {[%clk 0:00:57]}  Ke6 {[%clk 0:00:22]} 47. Ra6+ {[%clk 0:00:52]}  Kf7 {[%clk 0:00:22]} 48. Ra7+ {[%clk 0:00:48]}  Kg6 {[%clk 0:00:22]} 49. Ra6 {[%clk 0:00:49]}  Kf7 {[%clk 0:00:22]} 50. Rb6 {[%clk 0:00:48]}  Rc8 {[%clk 0:00:16]} 51. Rb5 {[%clk 0:00:47]}  Kg6 {[%clk 0:00:13]} 52. Rb6 {[%clk 0:00:48]}  Kf7 {[%clk 0:00:13]} 53. Ra6 {[%clk 0:00:47]}  Rb8 {[%clk 0:00:12]} 54. Ra5 {[%clk 0:00:47]}  Rb1 {[%clk 0:00:11]} 55. Kxe4 {[%clk 0:00:45]}  Kg6 {[%clk 0:00:11]} 56. Kf3 {[%clk 0:00:44]}  Rf1+ {[%clk 0:00:11]} 57. Kg2 {[%clk 0:00:44]}  Re1 {[%clk 0:00:12]} 58. Ra3 {[%clk 0:00:45]}  Rb1 {[%clk 0:00:13]} 59. Ra5 {[%clk 0:00:42]}  Rb2+ {[%clk 0:00:13]} 60. Kf3 {[%clk 0:00:43]}  Rb1 {[%clk 0:00:14]} 61. Ra8 {[%clk 0:00:43]}  Rf1+ {[%clk 0:00:13]} 62. Ke4 {[%clk 0:00:43]}  Rb1 {[%clk 0:00:14]} 63. Rg8+ {[%clk 0:00:43]}  Kf7 {[%clk 0:00:14]} 64. Rc8 {[%clk 0:00:42]}  Kg6 {[%clk 0:00:15]} 65. Rc4 {[%clk 0:00:42]}  Re1 {[%clk 0:00:12]} 66. Rc2 {[%clk 0:00:40]}  Rg1 {[%clk 0:00:12]} 67. Kf3 {[%clk 0:00:40]}  Rf1+ {[%clk 0:00:12]} 68. Kg2 {[%clk 0:00:40]}  Ra1 {[%clk 0:00:13]} 69. Rf2 {[%clk 0:00:39]}  Re1 {[%clk 0:00:13]} 70. Kf3 {[%clk 0:00:40]}  Ra1 {[%clk 0:00:13]} 71. Kf4 {[%clk 0:00:38]}  Ra4+ {[%clk 0:00:13]} 72. e4 {[%clk 0:00:38]}  Ra1 {[%clk 0:00:12]} 73. Rf3 {[%clk 0:00:38]}  Rb1 {[%clk 0:00:13]} 74. Rf2 {[%clk 0:00:36]}  Ra1 {[%clk 0:00:13]} 75. Rh2 {[%clk 0:00:25]}  Rf1+ {[%clk 0:00:12]} 76. Ke3 {[%clk 0:00:26]}  Rg1 {[%clk 0:00:12]} 77. Rh8 {[%clk 0:00:18]}  Kg7 {[%clk 0:00:10]} 78. Rh4 {[%clk 0:00:17]}  Kg6 {[%clk 0:00:10]} 79. Kf2 {[%clk 0:00:18]}  Ra1 {[%clk 0:00:09]} 80. Rh8 {[%clk 0:00:19]}  Ra4 {[%clk 0:00:08]} 81. Kf3 {[%clk 0:00:19]}  Ra1 {[%clk 0:00:07]} 82. Rg8+ {[%clk 0:00:19]}  Kf7 {[%clk 0:00:07]} 83. Rh8 {[%clk 0:00:19]}  Kg6 {[%clk 0:00:08]} 84. Rh2 {[%clk 0:00:18]}  Ra3+ {[%clk 0:00:07]} 85. Kf4 {[%clk 0:00:19]}  Ra1 {[%clk 0:00:08]} 86. Rf2 {[%clk 0:00:19]}  Rb1 {[%clk 0:00:08]} 87. g5 {[%clk 0:00:20]}  fxg5+ {[%clk 0:00:08]} 88. Ke5 {[%clk 0:00:20]}  Rb5+ {[%clk 0:00:06]} 89. Kd6 {[%clk 0:00:19]}  Rb6+ {[%clk 0:00:06]} 90. Kc5 {[%clk 0:00:19]}  Rb1 {[%clk 0:00:04]} 91. e5 {[%clk 0:00:20]}  Re1 {[%clk 0:00:04]} 92. Kd6 {[%clk 0:00:20]}  g4 {[%clk 0:00:04]} 93. e6 {[%clk 0:00:20]}  Kg5 {[%clk 0:00:04]} 94. Rd2 {[%clk 0:00:18]}  g3 {[%clk 0:00:04]} 95. Rd5+ {[%clk 0:00:18]}  Kf4 {[%clk 0:00:03]} 96. Rd4+ {[%clk 0:00:19]}  Kf3 {[%clk 0:00:03]} 97. Rd5 {[%clk 0:00:20]}  Kf4 {[%clk 0:00:03]} 98. Rd4+ {[%clk 0:00:18]}  Kf3 {[%clk 0:00:04]} 99. Rd3+ {[%clk 0:00:19]}  Kf4 {[%clk 0:00:03]} 100. Rd2 {[%clk 0:00:20]}  Kf3 {[%clk 0:00:03]} 101. e7 {[%clk 0:00:20]}  g2 {[%clk 0:00:03]} 102. Rxg2 {[%clk 0:00:19]}  Kxg2 {[%clk 0:00:04]} 103. Kd7 {[%clk 0:00:19]}  Rxe7+ {[%clk 0:00:04]} 104. Kxe7 {[%clk 0:00:20]} 1/2-1/2


[Site "https://www.chess.com"]

[Event "Titled Tuesday Blitz October 25 Late 2022"]
[White "Mickiewicz, Piotr"]
[Black "Gardezi, Arsal"]
[WhiteFideId "1114891"]
[BlackFideId "30949521"]
[WhiteElo "2246"]
[BlackElo "1906"]
[Result "0-1"]
[Round "09"]
[TimeControl "180+1"]
[Date "2022.10.26"]
[WhiteClock "0:00:10"]
[BlackClock "0:00:07"]

1. e4 {[%clk 0:03:00]}  e5 {[%clk 0:02:49]} 2. Nf3 {[%clk 0:03:00]}  Nc6 {[%clk 0:02:44]} 3. Bc4 {[%clk 0:03:00]}  Nf6 {[%clk 0:02:44]} 4. d3 {[%clk 0:03:00]}  Bc5 {[%clk 0:02:43]} 5. Nc3 {[%clk 0:02:50]}  O-O {[%clk 0:02:33]} 6. h3 {[%clk 0:02:46]}  d6 {[%clk 0:02:13]} 7. Bg5 {[%clk 0:02:43]}  h6 {[%clk 0:02:08]} 8. Bh4 {[%clk 0:02:42]}  Be6 {[%clk 0:02:07]} 9. Nd5 {[%clk 0:02:13]}  Bxd5 {[%clk 0:02:02]} 10. Bxd5 {[%clk 0:02:08]}  Nd4 {[%clk 0:01:48]} 11. Nxd4 {[%clk 0:01:56]}  Bxd4 {[%clk 0:01:46]} 12. c3 {[%clk 0:01:55]}  Bb6 {[%clk 0:01:46]} 13. Bxb7 {[%clk 0:01:48]}  Rb8 {[%clk 0:01:41]} 14. Bc6 {[%clk 0:01:46]}  g5 {[%clk 0:01:39]} 15. Bg3 {[%clk 0:01:42]}  Bc5 {[%clk 0:01:26]} 16. b4 {[%clk 0:01:40]}  Bb6 {[%clk 0:01:17]} 17. h4 {[%clk 0:01:38]}  g4 {[%clk 0:01:15]} 18. h5 {[%clk 0:01:37]}  a5 {[%clk 0:01:12]} 19. a3 {[%clk 0:01:35]}  Kh7 {[%clk 0:01:05]} 20. Bh4 {[%clk 0:01:28]}  Qe7 {[%clk 0:00:31]} 21. O-O {[%clk 0:01:25]}  Rg8 {[%clk 0:00:27]} 22. g3 {[%clk 0:01:24]}  Qe6 {[%clk 0:00:27]} 23. Bxf6 {[%clk 0:00:43]}  Qxf6 {[%clk 0:00:26]} 24. Kg2 {[%clk 0:00:43]}  Rg5 {[%clk 0:00:23]} 25. f4 {[%clk 0:00:30]}  gxf3+ {[%clk 0:00:19]} 26. Qxf3 {[%clk 0:00:29]}  Qg7 {[%clk 0:00:18]} 27. Qxf7 {[%clk 0:00:16]}  Rxg3+ {[%clk 0:00:18]} 28. Kh2 {[%clk 0:00:16]}  Rg2+ {[%clk 0:00:16]} 29. Kh1 {[%clk 0:00:16]}  Rg1+ {[%clk 0:00:16]} 30. Rxg1 {[%clk 0:00:14]}  Qxf7 {[%clk 0:00:16]} 31. Raf1 {[%clk 0:00:13]}  Qxh5+ {[%clk 0:00:16]} 32. Kg2 {[%clk 0:00:12]}  Qg4+ {[%clk 0:00:13]} 33. Kh2 {[%clk 0:00:11]}  Qh4+ {[%clk 0:00:12]} 34. Kg2 {[%clk 0:00:10]}  Rg8+ {[%clk 0:00:08]} 35. Kf3 {[%clk 0:00:10]}  Qh5+ {[%clk 0:00:07]} 0-1


[Site "https://www.chess.com"]

[Event "Titled Tuesday Blitz October 25 Late 2022"]
[White "Muhammad, Shahzeb"]
[Black "Clawitter, Craig"]
[WhiteFideId "7804806"]
[BlackFideId "2023105"]
[WhiteElo "2401"]
[BlackElo "2263"]
[Result "1-0"]
[Round "09"]
[TimeControl "180+1"]
[Date "2022.10.26"]
[WhiteClock "0:01:06"]
[BlackClock "0:00:03"]

1. e4 {[%clk 0:03:00]}  e6 {[%clk 0:02:56]} 2. d4 {[%clk 0:02:58]}  d5 {[%clk 0:02:57]} 3. Nd2 {[%clk 0:02:55]}  Be7 {[%clk 0:02:56]} 4. Ngf3 {[%clk 0:02:54]}  Nf6 {[%clk 0:02:56]} 5. e5 {[%clk 0:02:55]}  Nfd7 {[%clk 0:02:56]} 6. Bd3 {[%clk 0:02:55]}  c5 {[%clk 0:02:57]} 7. c3 {[%clk 0:02:55]}  Nc6 {[%clk 0:02:57]} 8. O-O {[%clk 0:02:55]}  a5 {[%clk 0:02:58]} 9. Re1 {[%clk 0:02:54]}  cxd4 {[%clk 0:02:58]} 10. cxd4 {[%clk 0:02:53]}  Qb6 {[%clk 0:02:58]} 11. Nb1 {[%clk 0:02:53]}  Nxd4 {[%clk 0:02:53]} 12. Nxd4 {[%clk 0:02:37]}  Qxd4 {[%clk 0:02:54]} 13. Nc3 {[%clk 0:02:37]}  Qb6 {[%clk 0:02:43]} 14. Qg4 {[%clk 0:02:17]}  O-O {[%clk 0:02:25]} 15. Bh6 {[%clk 0:02:13]}  g6 {[%clk 0:02:26]} 16. Bxf8 {[%clk 0:02:10]}  Bxf8 {[%clk 0:02:27]} 17. Nb5 {[%clk 0:02:03]}  Bg7 {[%clk 0:02:10]} 18. Qg3 {[%clk 0:01:52]}  Nc5 {[%clk 0:02:01]} 19. Bf1 {[%clk 0:01:48]}  Bd7 {[%clk 0:01:57]} 20. Nd6 {[%clk 0:01:47]}  Qxb2 {[%clk 0:01:32]} 21. Rab1 {[%clk 0:01:42]}  Qxa2 {[%clk 0:01:32]} 22. Qe3 {[%clk 0:01:32]}  Ne4 {[%clk 0:00:58]} 23. Rxb7 {[%clk 0:01:18]}  Be8 {[%clk 0:00:03]} 24. f3 {[%clk 0:01:06]} 1-0


[Site "https://www.chess.com"]

[Event "Titled Tuesday Blitz October 25 Late 2022"]
[White "Rodriguez Santiago, Jaime"]
[Black "Marcolino, Daniel Mattos"]
[WhiteFideId "3100898"]
[BlackFideId "2106841"]
[WhiteElo "2025"]
[BlackElo "2093"]
[Result "1-0"]
[Round "09"]
[TimeControl "180+1"]
[Date "2022.10.26"]
[WhiteClock "0:00:59"]
[BlackClock "0:00:15"]

1. c4 {[%clk 0:03:00]}  e6 {[%clk 0:02:58]} 2. Nf3 {[%clk 0:02:56]}  d5 {[%clk 0:02:57]} 3. g3 {[%clk 0:02:56]}  Nf6 {[%clk 0:02:57]} 4. Bg2 {[%clk 0:02:57]}  Be7 {[%clk 0:02:56]} 5. O-O {[%clk 0:02:57]}  O-O {[%clk 0:02:56]} 6. b3 {[%clk 0:02:56]}  b6 {[%clk 0:02:55]} 7. Bb2 {[%clk 0:02:56]}  Bb7 {[%clk 0:02:55]} 8. d3 {[%clk 0:02:56]}  c5 {[%clk 0:02:55]} 9. e3 {[%clk 0:02:56]}  Nbd7 {[%clk 0:02:55]} 10. Qe2 {[%clk 0:02:55]}  Qc7 {[%clk 0:02:53]} 11. Nc3 {[%clk 0:02:54]}  a6 {[%clk 0:02:48]} 12. Rad1 {[%clk 0:02:53]}  Rfd8 {[%clk 0:02:31]} 13. Ne1 {[%clk 0:02:48]}  d4 {[%clk 0:02:23]} 14. exd4 {[%clk 0:02:37]}  Bxg2 {[%clk 0:02:21]} 15. Nxg2 {[%clk 0:02:36]}  cxd4 {[%clk 0:02:21]} 16. Ne4 {[%clk 0:02:36]}  Nc5 {[%clk 0:01:52]} 17. f4 {[%clk 0:02:20]}  Ncxe4 {[%clk 0:01:41]} 18. dxe4 {[%clk 0:02:18]}  d3 {[%clk 0:01:34]} 19. Rxd3 {[%clk 0:02:13]}  Bc5+ {[%clk 0:01:34]} 20. Kh1 {[%clk 0:02:11]}  Rxd3 {[%clk 0:01:32]} 21. Qxd3 {[%clk 0:02:11]}  Ng4 {[%clk 0:01:32]} 22. Qe2 {[%clk 0:02:06]}  f5 {[%clk 0:01:15]} 23. h3 {[%clk 0:02:00]}  Nf6 {[%clk 0:01:09]} 24. Bxf6 {[%clk 0:01:58]}  gxf6 {[%clk 0:01:07]} 25. exf5 {[%clk 0:01:59]}  e5 {[%clk 0:00:56]} 26. fxe5 {[%clk 0:01:54]}  fxe5 {[%clk 0:00:57]} 27. f6 {[%clk 0:01:51]}  Rf8 {[%clk 0:00:45]} 28. Qe4 {[%clk 0:01:33]}  Bd4 {[%clk 0:00:30]} 29. Nh4 {[%clk 0:01:24]}  Rf7 {[%clk 0:00:23]} 30. Qd5 {[%clk 0:01:21]}  Kf8 {[%clk 0:00:22]} 31. Kh2 {[%clk 0:01:19]}  Qb7 {[%clk 0:00:18]} 32. Qd6+ {[%clk 0:01:17]}  Ke8 {[%clk 0:00:17]} 33. Nf5 {[%clk 0:01:17]}  Qd7 {[%clk 0:00:15]} 34. Qb8+ {[%clk 0:01:13]}  Qd8 {[%clk 0:00:15]} 35. Nd6+ {[%clk 0:00:59]} 1-0


[Site "https://www.chess.com"]

[Event "Titled Tuesday Blitz October 25 Late 2022"]
[White "Romero Ruscalleda, Josep"]
[Black "Osiecki, Stanislaw"]
[WhiteFideId "2231859"]
[BlackFideId "1102990"]
[WhiteElo "2332"]
[BlackElo "2088"]
[Result "1-0"]
[Round "09"]
[TimeControl "180+1"]
[Date "2022.10.26"]
[WhiteClock "0:02:04"]
[BlackClock "0:01:41"]

1. e4 {[%clk 0:03:00]}  e6 {[%clk 0:02:53]} 2. d4 {[%clk 0:03:00]}  d5 {[%clk 0:02:53]} 3. e5 {[%clk 0:03:01]}  c5 {[%clk 0:02:53]} 4. c3 {[%clk 0:03:01]}  Nc6 {[%clk 0:02:53]} 5. Be3 {[%clk 0:03:01]}  Qb6 {[%clk 0:02:52]} 6. Qd2 {[%clk 0:03:01]}  cxd4 {[%clk 0:02:52]} 7. cxd4 {[%clk 0:03:01]}  Bb4 {[%clk 0:02:51]} 8. Nc3 {[%clk 0:03:01]}  Nge7 {[%clk 0:02:51]} 9. Nf3 {[%clk 0:03:01]}  Nf5 {[%clk 0:02:50]} 10. Bd3 {[%clk 0:03:01]}  Nxe3 {[%clk 0:02:50]} 11. fxe3 {[%clk 0:03:01]}  h6 {[%clk 0:02:49]} 12. O-O {[%clk 0:03:01]}  O-O {[%clk 0:02:49]} 13. Rf2 {[%clk 0:02:59]}  Bd7 {[%clk 0:02:47]} 14. Raf1 {[%clk 0:02:57]}  Na5 {[%clk 0:02:43]} 15. Bb1 {[%clk 0:02:51]}  g6 {[%clk 0:02:20]} 16. Nh4 {[%clk 0:02:23]}  Nc4 {[%clk 0:02:16]} 17. Qd3 {[%clk 0:02:17]}  Bxc3 {[%clk 0:02:08]} 18. Nxg6 {[%clk 0:02:08]}  Kg7 {[%clk 0:01:47]} 19. Nxf8 {[%clk 0:02:07]}  Kxf8 {[%clk 0:01:41]} 20. Rxf7+ {[%clk 0:02:04]}  Ke8 {[%clk 0:01:41]} 21. Rf8+ {[%clk 0:02:04]} 1-0


[Site "https://www.chess.com"]

[Event "Titled Tuesday Blitz October 25 Late 2022"]
[White "Rustemov, Alexander"]
[Black "Sarana, Alexey"]
[WhiteFideId "4119002"]
[BlackFideId "24133795"]
[WhiteElo "2803"]
[BlackElo "2689"]
[Result "0-1"]
[Round "09"]
[TimeControl "180+1"]
[Date "2022.10.26"]
[WhiteClock "0:00:02"]
[BlackClock "0:00:19"]

1. d4 {[%clk 0:03:00]}  d5 {[%clk 0:02:57]} 2. Bg5 {[%clk 0:02:59]}  h6 {[%clk 0:02:52]} 3. Bh4 {[%clk 0:02:59]}  c5 {[%clk 0:02:50]} 4. e3 {[%clk 0:02:58]}  Qb6 {[%clk 0:02:47]} 5. Nc3 {[%clk 0:02:57]}  e6 {[%clk 0:02:44]} 6. Nf3 {[%clk 0:02:51]}  Bd7 {[%clk 0:02:43]} 7. Rb1 {[%clk 0:02:46]}  Ne7 {[%clk 0:02:38]} 8. dxc5 {[%clk 0:02:38]}  Qxc5 {[%clk 0:02:35]} 9. Bd3 {[%clk 0:02:38]}  Nbc6 {[%clk 0:02:31]} 10. O-O {[%clk 0:02:37]}  a6 {[%clk 0:02:29]} 11. e4 {[%clk 0:02:32]}  d4 {[%clk 0:02:28]} 12. Ne2 {[%clk 0:02:28]}  Ng6 {[%clk 0:02:27]} 13. Bg3 {[%clk 0:02:26]}  Bd6 {[%clk 0:02:06]} 14. a3 {[%clk 0:01:45]}  Bxg3 {[%clk 0:02:04]} 15. hxg3 {[%clk 0:01:44]}  Nge5 {[%clk 0:02:01]} 16. Nxe5 {[%clk 0:01:42]}  Nxe5 {[%clk 0:02:01]} 17. Qd2 {[%clk 0:01:29]}  Rd8 {[%clk 0:01:59]} 18. Rbd1 {[%clk 0:01:22]}  Ba4 {[%clk 0:01:55]} 19. b3 {[%clk 0:01:18]}  Nxd3 {[%clk 0:01:54]} 20. cxd3 {[%clk 0:01:11]}  Bxb3 {[%clk 0:01:50]} 21. Rc1 {[%clk 0:01:00]}  Qd6 {[%clk 0:01:27]} 22. Rb1 {[%clk 0:00:49]}  Ba4 {[%clk 0:01:26]} 23. Rxb7 {[%clk 0:00:48]}  Qxa3 {[%clk 0:01:14]} 24. Qa5 {[%clk 0:00:40]}  O-O {[%clk 0:01:11]} 25. Rb4 {[%clk 0:00:39]}  Qxd3 {[%clk 0:00:54]} 26. Nf4 {[%clk 0:00:39]}  Qxe4 {[%clk 0:00:48]} 27. Qxa4 {[%clk 0:00:39]}  e5 {[%clk 0:00:48]} 28. Nh3 {[%clk 0:00:37]}  Rd6 {[%clk 0:00:46]} 29. Qd1 {[%clk 0:00:26]}  Qd5 {[%clk 0:00:41]} 30. f3 {[%clk 0:00:21]}  a5 {[%clk 0:00:29]} 31. Ra4 {[%clk 0:00:21]}  Rb8 {[%clk 0:00:27]} 32. g4 {[%clk 0:00:22]}  Rb2 {[%clk 0:00:26]} 33. Nf2 {[%clk 0:00:22]}  Qb5 {[%clk 0:00:24]} 34. Ne4 {[%clk 0:00:19]}  Rc6 {[%clk 0:00:24]} 35. Kh2 {[%clk 0:00:11]}  Rcc2 {[%clk 0:00:24]} 36. Rg1 {[%clk 0:00:11]}  Qxa4 {[%clk 0:00:23]} 37. Qd3 {[%clk 0:00:06]}  Qb5 {[%clk 0:00:20]} 38. Qa3 {[%clk 0:00:06]}  Qb4 {[%clk 0:00:20]} 39. Qa1 {[%clk 0:00:05]}  a4 {[%clk 0:00:21]} 40. Kg3 {[%clk 0:00:03]}  a3 {[%clk 0:00:21]} 41. g5 {[%clk 0:00:03]}  hxg5 {[%clk 0:00:20]} 42. Nxg5 {[%clk 0:00:03]}  a2 {[%clk 0:00:20]} 43. Rh1 {[%clk 0:00:03]}  Rb1 {[%clk 0:00:18]} 44. Rxb1 {[%clk 0:00:02]}  Qxb1 {[%clk 0:00:19]} 0-1


[Site "https://www.chess.com"]

[Event "Titled Tuesday Blitz October 25 Late 2022"]
[White "Sadhwani, Raunak"]
[Black "Zhigalko, Sergei"]
[WhiteFideId "35093487"]
[BlackFideId "13502956"]
[WhiteElo "2656"]
[BlackElo "2662"]
[Result "1-0"]
[Round "09"]
[TimeControl "180+1"]
[Date "2022.10.26"]
[WhiteClock "0:00:23"]
[BlackClock "0:00:04"]

1. d4 {[%clk 0:03:00]}  Nf6 {[%clk 0:03:00]} 2. Nc3 {[%clk 0:02:59]}  d5 {[%clk 0:03:00]} 3. Bf4 {[%clk 0:03:00]}  a6 {[%clk 0:03:00]} 4. e3 {[%clk 0:02:59]}  b5 {[%clk 0:03:00]} 5. Nf3 {[%clk 0:02:58]}  Bb7 {[%clk 0:03:01]} 6. Ne5 {[%clk 0:02:58]}  e6 {[%clk 0:03:02]} 7. g4 {[%clk 0:02:58]}  Nfd7 {[%clk 0:02:56]} 8. g5 {[%clk 0:02:57]}  Nxe5 {[%clk 0:02:56]} 9. Bxe5 {[%clk 0:02:58]}  Qxg5 {[%clk 0:02:49]} 10. Bxc7 {[%clk 0:02:54]}  Nc6 {[%clk 0:02:48]} 11. Bf4 {[%clk 0:02:53]}  Qf6 {[%clk 0:02:27]} 12. Qg4 {[%clk 0:02:51]}  h5 {[%clk 0:02:11]} 13. Qg3 {[%clk 0:02:44]}  Nb4 {[%clk 0:02:02]} 14. Bd3 {[%clk 0:02:31]}  Rc8 {[%clk 0:01:56]} 15. h4 {[%clk 0:02:25]}  Nxd3+ {[%clk 0:01:53]} 16. cxd3 {[%clk 0:02:26]}  Qf5 {[%clk 0:01:54]} 17. Kd2 {[%clk 0:02:22]}  b4 {[%clk 0:01:11]} 18. Ne2 {[%clk 0:02:00]}  a5 {[%clk 0:00:55]} 19. Rac1 {[%clk 0:01:59]}  Rxc1 {[%clk 0:00:52]} 20. Nxc1 {[%clk 0:01:57]}  Ba6 {[%clk 0:00:44]} 21. Re1 {[%clk 0:01:56]}  b3 {[%clk 0:00:35]} 22. a3 {[%clk 0:01:56]}  a4 {[%clk 0:00:35]} 23. Bd6 {[%clk 0:01:33]}  Be7 {[%clk 0:00:15]} 24. Qxg7 {[%clk 0:01:07]}  Bf6 {[%clk 0:00:15]} 25. Qg3 {[%clk 0:01:04]}  Kd7 {[%clk 0:00:14]} 26. Bc5 {[%clk 0:01:01]}  e5 {[%clk 0:00:15]} 27. e4 {[%clk 0:00:57]}  Qe6 {[%clk 0:00:02]} 28. Ne2 {[%clk 0:00:53]}  Rc8 {[%clk 0:00:03]} 29. exd5 {[%clk 0:00:50]}  Qxd5 {[%clk 0:00:02]} 30. Nc3 {[%clk 0:00:51]}  Qe6 {[%clk 0:00:02]} 31. Nxa4 {[%clk 0:00:48]}  Kd8 {[%clk 0:00:01]} 32. dxe5 {[%clk 0:00:44]}  Be7 {[%clk 0:00:01]} 33. Bxe7+ {[%clk 0:00:41]}  Kxe7 {[%clk 0:00:02]} 34. Nc3 {[%clk 0:00:40]}  Rd8 {[%clk 0:00:01]} 35. Qg5+ {[%clk 0:00:38]}  Ke8 {[%clk 0:00:02]} 36. Re3 {[%clk 0:00:38]}  Rd4 {[%clk 0:00:02]} 37. Qxh5 {[%clk 0:00:27]}  Rg4 {[%clk 0:00:02]} 38. Qh8+ {[%clk 0:00:24]}  Kd7 {[%clk 0:00:02]} 39. Qf6 {[%clk 0:00:23]}  Qxf6 {[%clk 0:00:02]} 40. exf6 {[%clk 0:00:23]}  Rxh4 {[%clk 0:00:03]} 41. Ne4 {[%clk 0:00:24]}  Kc6 {[%clk 0:00:03]} 42. Ng5 {[%clk 0:00:20]}  Rf4 {[%clk 0:00:04]} 43. Rf3 {[%clk 0:00:20]}  Rxf3 {[%clk 0:00:01]} 44. Nxf3 {[%clk 0:00:21]}  Bc8 {[%clk 0:00:01]} 45. Ne5+ {[%clk 0:00:21]}  Kd5 {[%clk 0:00:01]} 46. Nxf7 {[%clk 0:00:22]}  Ke6 {[%clk 0:00:01]} 47. Ng5+ {[%clk 0:00:22]}  Kxf6 {[%clk 0:00:02]} 48. Ne4+ {[%clk 0:00:23]}  Ke5 {[%clk 0:00:03]} 49. Nc5 {[%clk 0:00:23]}  Be6 {[%clk 0:00:03]} 50. Nxe6 {[%clk 0:00:23]}  Kxe6 {[%clk 0:00:04]} 51. Kc3 {[%clk 0:00:23]} 1-0


[Site "https://www.chess.com"]